fUSD/lending_fUSD_20251122
["ID","MTS","AMOUNT","RATE_DAILY","PERIOD"]
[394639537,1763806258666,-500.0,0.00016712,2]
[394639538,1763806258676,-500.0,0.00016712,2]
[394639539,1763806258686,-619.27,0.00016712,2]
[394639540,1763806258695,-633.07,0.00016712,2]
[394639541,1763806258704,-512.4,0.00016712,2]
[394639542,1763806258714,-734.0,0.00016712,2]
[394639543,1763806258723,-686.05,0.00016712,2]
[394639544,1763806258737,-689.73,0.00016712,2]
[394639545,1763806258747,-500.0,0.00016712,2]
[394639546,1763806258757,-500.0,0.00016712,2]
[394639547,1763806258768,-515.09,0.00016712,2]
[394639548,1763806258779,-909.79,0.00016712,2]
[394639549,1763806258789,-534.13,0.00016712,2]
[394639550,1763806258798,-500.0,0.00016712,2]
[394639551,1763806258809,-987.88,0.00016712,2]
[394639552,1763806258818,-507.97542,0.00016712,2]
[394639553,1763806258827,-500.0,0.00016712,2]
[394639554,1763806258837,-500.0,0.00016712,2]
[394639555,1763806258846,-500.0,0.00016712,2]
[394639556,1763806258856,-1118.33,0.00016712,2]
[394639557,1763806258867,-593.96,0.00016712,2]
[394639558,1763806258877,-532.39,0.00016712,2]
[394639559,1763806258887,-500.0,0.00016712,2]
[394639560,1763806258896,-500.0,0.00016712,2]
[394639561,1763806258906,-500.0,0.00016712,2]
[394639562,1763806258915,-500.0,0.00016712,2]
[394639563,1763806258925,-500.0,0.00016712,2]
[394639564,1763806258934,-500.0,0.00016712,2]
[394639565,1763806258944,-500.0,0.00016712,2]
[394639566,1763806258953,-500.0,0.00016712,2]
[394639567,1763806258962,-500.0,0.00016712,2]
[394639568,1763806258972,-500.0,0.00016712,2]
[394639569,1763806258981,-500.0,0.00016712,2]
[394639570,1763806258990,-500.0,0.00016712,2]
[394639571,1763806259000,-500.0,0.00016712,2]
[394639572,1763806259010,-500.0,0.00016712,2]
[394639573,1763806259019,-500.0,0.00016712,2]
[394639574,1763806259028,-643.4,0.00016712,2]
[394639575,1763806259037,-745.16,0.00016712,2]
[394639576,1763806259047,-760.48,0.00016712,2]
[394639577,1763806259056,-500.0,0.00016712,2]
[394639578,1763806259065,-500.0,0.00016712,2]
[394639579,1763806259075,-500.0,0.00016712,2]
[394639580,1763806259084,-500.0,0.00016712,2]
[394639581,1763806259093,-660.26,0.00016712,2]
[394639582,1763806259102,-500.0,0.00016712,2]
[394639583,1763806259111,-500.0,0.00016712,2]
[394639584,1763806259120,-500.0,0.00016712,2]
[394639585,1763806259130,-500.0,0.00016712,2]
[394639586,1763806259139,-643.35,0.00016712,2]
[394639587,1763806259148,-536.96,0.00016712,2]
[394639588,1763806259157,-500.0,0.00016712,2]
[394639589,1763806259166,-561.03,0.00016712,2]
[394639590,1763806259176,-667.06,0.00016712,2]
[394639591,1763806259185,-500.0,0.00016712,2]
[394639592,1763806259194,-500.0,0.00016712,2]
[394639593,1763806259205,-500.0,0.00016712,2]
[394639594,1763806259214,-500.0,0.00016712,2]
[394639595,1763806259223,-840.36,0.00016712,2]
[394639596,1763806259232,-500.0,0.00016712,2]
[394639597,1763806259242,-500.0,0.00016712,2]
[394639598,1763806259251,-588.85,0.00016712,2]
[394639599,1763806259260,-527.44,0.00016712,2]
[394639600,1763806259271,-500.0,0.00016712,2]
[394639601,1763806259282,-500.0,0.00016712,2]
[394639602,1763806259291,-500.0,0.00016712,2]
[394639603,1763806259300,-1117.89,0.00016712,2]
[394639604,1763806259310,-500.0,0.00016712,2]
[394639605,1763806259319,-761.79,0.00016712,2]
[394639606,1763806259328,-620.55,0.00016712,2]
[394639607,1763806259338,-500.0,0.00016712,2]
[394639608,1763806259347,-593.36,0.00016712,2]
[394639609,1763806259357,-500.0,0.00016712,2]
[394639610,1763806259367,-676.83,0.00016712,2]
[394639611,1763806259377,-165.23588719,0.00016712,2]
[394639612,1763806259386,-900.44,0.00016712,2]
[394639613,1763806259395,-1015.0,0.00016712,2]
[394639614,1763806259405,-588.06,0.00016712,2]
[394639615,1763806259414,-500.0,0.00016712,2]
[394639616,1763806259423,-511.04,0.00016712,2]
[394639617,1763806259433,-500.0,0.00016712,2]
[394639618,1763806259442,-1144.77,0.00016712,2]
[394639619,1763806259451,-787.96,0.00016712,2]
[394639620,1763806259461,-500.0,0.00016712,2]
[394639621,1763806259470,-500.0,0.00016712,2]
[394639622,1763806259479,-500.0,0.00016712,2]
[394639623,1763806259488,-865.95,0.00016712,2]
[394639624,1763806259497,-592.3,0.00016712,2]
[394639625,1763806259506,-540.6,0.00016712,2]
[394639626,1763806259516,-500.0,0.00016712,2]
[394639627,1763806259525,-790.49,0.00016712,2]
[394639628,1763806259534,-500.0,0.00016712,2]
[394639629,1763806259544,-580.1,0.00016712,2]
[394639630,1763806259553,-500.0,0.00016712,2]
[394639631,1763806259562,-500.0,0.00016712,2]
[394639632,1763806259571,-766.2,0.00016712,2]
[394639633,1763806259580,-557.29,0.00016712,2]
[394639634,1763806259590,-500.0,0.00016712,2]
[394639635,1763806259599,-500.0,0.00016712,2]
[394639636,1763806259610,-637.13,0.00016712,2]
[394639637,1763806259619,-1511.77,0.00016712,2]
[394639638,1763806259628,-699.88,0.00016712,2]
[394639639,1763806259637,-705.23,0.00016712,2]
[394639640,1763806259646,-500.0,0.00016712,2]
[394639641,1763806259656,-500.0,0.00016712,2]
[394639642,1763806259665,-500.0,0.00016712,2]
[394639643,1763806259675,-768.25,0.00016712,2]
[394639644,1763806259684,-561.04,0.00016712,2]
[394639645,1763806259693,-500.0,0.00016712,2]
[394639646,1763806259703,-550.41846571,0.00016712,2]
[394639647,1763806259712,-681.07,0.00016712,2]
[394639648,1763806259724,-500.0,0.00016712,2]
[394639649,1763806259733,-500.0,0.00016712,2]
[394639650,1763806259743,-500.0,0.00016712,2]
[394639651,1763806259751,-500.0,0.00016712,2]
[394639652,1763806259761,-889.28,0.00016712,2]
[394639653,1763806259770,-222.29209648,0.00016712,2]
[394639654,1763806259780,-500.0,0.00016712,2]
[394639655,1763806259790,-500.0,0.00016712,2]
[394639656,1763806259799,-173.42172291,0.00016712,2]
[394639657,1763806259810,-500.0,0.00016712,2]
[394639658,1763806259820,-500.0,0.00016712,2]
[394639659,1763806259829,-385.74531078,0.00016712,2]
[394639660,1763806259839,-500.0,0.00016712,2]
[394639661,1763806259848,-500.0,0.00016712,2]
[394639662,1763806259857,-910.7,0.00016712,2]
[394639663,1763806259867,-408.09887184,0.00016712,2]
[394639664,1763806259877,-581.69,0.00016712,2]
[394639665,1763806259886,-681.0,0.00016712,2]
[394639666,1763806259895,-500.0,0.00016712,2]
[394639667,1763806259905,-500.0,0.00016712,2]
[394639668,1763806259914,-500.0,0.00016712,2]
[394639669,1763806259923,-561.58,0.00016712,2]
[394639670,1763806259932,-520.44,0.00016712,2]
[394639671,1763806259941,-892.07,0.00016712,2]
[394639672,1763806259951,-513.94893374,0.00016712,2]
[394639673,1763806259960,-500.0,0.00016712,2]
[394639674,1763806259969,-500.0,0.00016712,2]
[394639675,1763806259979,-648.76,0.00016712,2]
[394639676,1763806259989,-540.37,0.00016712,2]
[394639677,1763806259998,-500.0,0.00016712,2]
[394639678,1763806260007,-1478.21,0.00016712,2]
[394639679,1763806260017,-500.0,0.00016712,2]
[394639680,1763806260026,-529.40916826,0.00016712,2]
[394639681,1763806260036,-500.0,0.00016712,2]
[394639682,1763806260045,-516.33676283,0.00016712,2]
[394639683,1763806260055,-500.0,0.00016712,2]
[394639684,1763806260064,-680.96,0.00016712,2]
[394639685,1763806260073,-648.09937597,0.00016712,2]
[394639686,1763806260082,-423.57817068,0.00016712,2]
[394639687,1763806260091,-182.08697452,0.00016712,2]
[394639688,1763806260100,-500.0,0.00016712,2]
[394639689,1763806260109,-500.0,0.00016712,2]
[394639690,1763806260119,-500.0,0.00016712,2]
[394639691,1763806260128,-685.91,0.00016712,2]
[394639692,1763806260138,-500.0,0.00016712,2]
[394639693,1763806260147,-778.77,0.00016712,2]
[394639694,1763806260156,-500.0,0.00016712,2]
[394639695,1763806260165,-500.0,0.00016712,2]
[394639696,1763806260174,-422.41988341,0.00016712,2]
[394639697,1763806260479,-500.0,0.00016712,2]
[394639698,1763806260508,-500.0,0.00016712,2]
[394639699,1763806260518,-714.38,0.00016712,2]
[394639700,1763806260528,-340.28115097,0.00016712,2]
[394639701,1763806260539,-500.0,0.00016712,2]
[394639702,1763806260549,-500.0,0.00016712,2]
[394639703,1763806260561,-758.68,0.00016712,2]
[394639704,1763806260571,-745.24,0.00016712,2]
[394639705,1763806260581,-758.78,0.00016712,2]
[394639706,1763806260591,-500.0,0.00016712,2]
[394639707,1763806260602,-1003.75,0.00016712,2]
[394639708,1763806260615,-500.0,0.00016712,2]
[394639709,1763806260625,-500.0,0.00016712,2]
[394639710,1763806260636,-500.0,0.00016712,2]
[394639711,1763806260646,-500.0,0.00016712,2]
[394639712,1763806260658,-500.0,0.00016712,2]
[394639713,1763806260669,-500.0,0.00016712,2]
[394639714,1763806260679,-753.49,0.00016712,2]
[394639715,1763806260689,-697.04,0.00016712,2]
[394639716,1763806260700,-595.07,0.00016712,2]
[394639717,1763806260711,-500.0,0.00016712,2]
[394639718,1763806260721,-892.51,0.00016712,2]
[394639719,1763806260736,-500.0,0.00016712,2]
[394639720,1763806260747,-507.73,0.00016712,2]
[394639721,1763806260758,-500.0,0.00016712,2]
[394639722,1763806260767,-500.0,0.00016712,2]
[394639723,1763806260779,-500.0,0.00016712,2]
[394639724,1763806260790,-817.08,0.00016712,2]
[394639725,1763806260799,-500.0,0.00016712,2]
[394639726,1763806260809,-500.0,0.00016712,2]
[394639727,1763806260819,-1276.37,0.00016712,2]
[394639728,1763806260829,-598.13,0.00016712,2]
[394639729,1763806260839,-500.0,0.00016712,2]
[394639730,1763806260848,-500.0,0.00016712,2]
[394639731,1763806260858,-500.0,0.00016712,2]
[394639732,1763806260874,-500.0,0.00016712,2]
[394639733,1763806260884,-380.22224543,0.00016712,2]
[394639734,1763806260893,-683.96,0.00016712,2]
[394639735,1763806260902,-500.0,0.00016712,2]
[394639736,1763806260912,-500.0,0.00016712,2]
[394639737,1763806260921,-206.25960905,0.00016712,2]
[394639738,1763806260930,-724.4,0.00016712,2]
[394639739,1763806260940,-500.0,0.00016712,2]
[394639740,1763806260950,-700.99,0.00016712,2]
[394639741,1763806260960,-500.0,0.00016712,2]
[394639742,1763806260970,-506.6,0.00016712,2]
[394639743,1763806260979,-500.0,0.00016712,2]
[394639744,1763806260989,-500.0,0.00016712,2]
[394639745,1763806260999,-830.04,0.00016712,2]
[394639746,1763806261009,-500.0,0.00016712,2]
[394639747,1763806261019,-509.8,0.00016712,2]
[394639748,1763806261028,-500.0,0.00016712,2]
[394639749,1763806261038,-500.0,0.00016712,2]
[394639750,1763806261047,-381.39313821,0.00016712,2]
[394639751,1763806261056,-645.82,0.00016712,2]
[394639752,1763806261067,-500.0,0.00016712,2]
[394639753,1763806261076,-328.11697659,0.00016712,2]
[394639754,1763806261085,-500.0,0.00016712,2]
[394639755,1763806261095,-500.0,0.00016712,2]
[394639756,1763806261104,-500.0,0.00016712,2]
[394639757,1763806261119,-500.0,0.00016712,2]
[394639758,1763806261128,-500.0,0.00016712,2]
[394639759,1763806261138,-651.49,0.00016712,2]
[394639760,1763806261147,-500.0,0.00016712,2]
[394639761,1763806261157,-500.0,0.00016712,2]
[394639762,1763806261166,-500.0,0.00016712,2]
[394639763,1763806261176,-680.93,0.00016712,2]
[394639764,1763806261185,-950.5,0.00016712,2]
[394639765,1763806261194,-500.0,0.00016712,2]
[394639766,1763806261204,-768.8,0.00016712,2]
[394639767,1763806261214,-1163.93,0.00016712,2]
[394639768,1763806261224,-938.85,0.00016712,2]
[394639769,1763806261233,-500.0,0.00016712,2]
[394639770,1763806261243,-500.0,0.00016712,2]
[394639771,1763806261252,-816.31,0.00016712,2]
[394639772,1763806261262,-500.0,0.00016712,2]
[394639773,1763806261271,-500.0,0.00016712,2]
[394639774,1763806261280,-695.83,0.00016712,2]
[394639775,1763806261289,-356.04482594,0.00016712,2]
[394639776,1763806261298,-500.0,0.00016712,2]
[394639777,1763806261306,-1025.64,0.00016712,2]
[394639778,1763806261315,-692.67,0.00016712,2]
[394639779,1763806261324,-970.47,0.00016712,2]
[394639780,1763806261333,-500.0,0.00016712,2]
[394639781,1763806261342,-500.0,0.00016712,2]
[394639782,1763806261352,-500.0,0.00016712,2]
[394639783,1763806261361,-500.0,0.00016712,2]
[394639784,1763806261374,-5173.16,0.00016712,2]
[394639785,1763806261383,-500.0,0.00016712,2]
[394639786,1763806261393,-500.0,0.00016712,2]
[394639787,1763806261402,-500.0,0.00016712,2]
[394639788,1763806261411,-500.0,0.00016712,2]
[394639789,1763806261421,-340.11319606,0.00016712,2]
[394639790,1763806261431,-500.0,0.00016712,2]
[394639791,1763806261440,-303.34869131,0.00016712,2]
[394639792,1763806261450,-500.0,0.00016712,2]
[394639793,1763806261459,-500.0,0.00016712,2]
[394639794,1763806261468,-408.43658105,0.00016712,2]
[394639795,1763806261477,-500.0,0.00016712,2]
[394639796,1763806261486,-500.0,0.00016712,2]
[394639797,1763806261495,-196.29308121,0.00016712,2]
[394639798,1763806261504,-974.11,0.00016712,2]
[394639799,1763806261513,-500.0,0.00016712,2]
[394639800,1763806261522,-500.0,0.00016712,2]
[394639801,1763806261531,-500.0,0.00016712,2]
[394639802,1763806261541,-500.0,0.00016712,2]
[394639803,1763806261550,-942.8,0.00016712,2]
[394639804,1763806261560,-300.0,0.00016712,2]
[394639805,1763806261569,-500.0,0.00016712,2]
[394639806,1763806261579,-1130.33,0.00016712,2]
[394639807,1763806261588,-500.0,0.00016712,2]
[394639808,1763806261597,-500.0,0.00016712,2]
[394639809,1763806261607,-500.0,0.00016712,2]
[394639810,1763806261617,-2544.87,0.00016712,2]
[394639811,1763806261626,-804.3,0.00016712,2]
[394639812,1763806261636,-674.23,0.00016712,2]
[394639813,1763806261645,-1191.45,0.00016712,2]
[394639814,1763806261654,-585.41,0.00016712,2]
[394639815,1763806261664,-500.0,0.00016712,2]
[394639816,1763806261674,-500.0,0.00016712,2]
[394639817,1763806261684,-500.0,0.00016712,2]
[394639818,1763806261694,-500.0,0.00016712,2]
[394639819,1763806261704,-526.48911156,0.00016712,2]
[394639820,1763806261713,-839.14,0.00016712,2]
[394639821,1763806261727,-500.0,0.00016712,2]
[394639822,1763806261735,-564.02,0.00016712,2]
[394639823,1763806261745,-505.12,0.00016712,2]
[394639824,1763806261754,-559.83,0.00016712,2]
[394639825,1763806261764,-500.0,0.00016712,2]
[394639826,1763806261775,-500.0,0.00016712,2]
[394639827,1763806261785,-500.0,0.00016712,2]
[394639828,1763806261794,-500.0,0.00016712,2]
[394639829,1763806261804,-500.0,0.00016712,2]
[394639830,1763806261814,-1055.95,0.00016712,2]
[394639831,1763806261823,-1463.02,0.00016712,2]
[394639832,1763806261832,-500.0,0.00016712,2]
[394639833,1763806261842,-521.42,0.00016712,2]
[394639834,1763806261851,-733.24,0.00016712,2]
[394639835,1763806261860,-500.0,0.00016712,2]
[394639836,1763806261871,-782.33,0.00016712,2]
[394639837,1763806261882,-500.0,0.00016712,2]
[394639838,1763806261891,-500.0,0.00016712,2]
[394639839,1763806261900,-500.0,0.00016712,2]
[394639840,1763806261910,-734.36,0.00016712,2]
[394639841,1763806261920,-500.0,0.00016712,2]
[394639842,1763806261929,-272.57099959,0.00016712,2]
[394639843,1763806261938,-500.0,0.00016712,2]
[394639844,1763806261947,-500.0,0.00016712,2]
[394639845,1763806261956,-500.0,0.00016712,2]
[394639846,1763806261966,-500.0,0.00016712,2]
[394639847,1763806261975,-839.69,0.00016712,2]
[394639848,1763806261984,-500.0,0.00016712,2]
[394639849,1763806261993,-500.0,0.00016712,2]
[394639850,1763806262003,-1249.82,0.00016712,2]
[394639851,1763806262012,-1049.8,0.00016712,2]
[394639852,1763806262021,-592.65545954,0.00016712,2]
[394639853,1763806262030,-500.0,0.00016712,2]
[394639854,1763806262039,-523.31,0.00016712,2]
[394639855,1763806262049,-1579.91,0.00016712,2]
[394639856,1763806262058,-500.0,0.00016712,2]
[394639857,1763806262066,-500.0,0.00016712,2]
[394639858,1763806262076,-500.0,0.00016712,2]
[394639859,1763806262085,-500.0,0.00016712,2]
[394639860,1763806262095,-500.0,0.00016712,2]
[394639861,1763806262104,-532.69,0.00016712,2]
[394639862,1763806262114,-570.72,0.00016712,2]
[394639863,1763806262123,-500.0,0.00016712,2]
[394639864,1763806262132,-515.86,0.00016712,2]
[394639865,1763806262142,-1073.42,0.00016712,2]
[394639866,1763806262151,-1688.87,0.00016712,2]
[394639867,1763806262160,-500.0,0.00016712,2]
[394639868,1763806262169,-500.0,0.00016712,2]
[394639869,1763806262179,-602.73,0.00016712,2]
[394639870,1763806262188,-786.03,0.00016712,2]
[394639871,1763806262198,-500.0,0.00016712,2]
[394639872,1763806262207,-500.0,0.00016712,2]
[394639873,1763806262215,-500.0,0.00016712,2]
[394639874,1763806262224,-1309.89,0.00016712,2]
[394639875,1763806262233,-500.0,0.00016712,2]
[394639876,1763806262243,-500.0,0.00016712,2]
[394639877,1763806262251,-500.0,0.00016712,2]
[394639878,1763806262261,-500.0,0.00016712,2]
[394639879,1763806262270,-919.35,0.00016712,2]
[394639880,1763806262280,-500.0,0.00016712,2]
[394639881,1763806262289,-523.55,0.00016712,2]
[394639882,1763806262299,-606.55,0.00016712,2]
[394639883,1763806262308,-816.25,0.00016712,2]
[394639884,1763806262317,-500.0,0.00016712,2]
[394639885,1763806262326,-500.0,0.00016712,2]
[394639886,1763806262335,-500.0,0.00016712,2]
[394639887,1763806262344,-500.0,0.00016712,2]
[394639888,1763806262354,-500.0,0.00016712,2]
[394639889,1763806262364,-1202.89,0.00016712,2]
[394639890,1763806262374,-696.52,0.00016712,2]
[394639891,1763806262383,-373.31414819,0.00016712,2]
[394639892,1763806262392,-532.1,0.00016712,2]
[394639893,1763806262402,-500.0,0.00016712,2]
[394639894,1763806262411,-1008.12,0.00016712,2]
[394639895,1763806262420,-771.55,0.00016712,2]
[394639896,1763806262429,-682.29,0.00016712,2]
[394639897,1763806262439,-597.76,0.00016712,2]
[394639898,1763806262448,-2185.15,0.00016712,2]
[394639899,1763806262458,-500.0,0.00016712,2]
[394639900,1763806262467,-500.0,0.00016712,2]
[394639901,1763806262477,-500.0,0.00016712,2]
[394639902,1763806262486,-500.0,0.00016712,2]
[394639903,1763806262495,-357.09188131,0.00016712,2]
[394639904,1763806262504,-935.0,0.00016712,2]
[394639905,1763806262514,-500.0,0.00016712,2]
[394639906,1763806262523,-561.06,0.00016712,2]
[394639907,1763806262533,-500.0,0.00016712,2]
[394639908,1763806262543,-558.65,0.00016712,2]
[394639909,1763806262553,-500.0,0.00016712,2]
[394639910,1763806262563,-1048.65,0.00016712,2]
[394639911,1763806262572,-500.0,0.00016712,2]
[394639912,1763806262581,-500.0,0.00016712,2]
[394639913,1763806262591,-517.79,0.00016712,2]
[394639914,1763806262600,-500.0,0.00016712,2]
[394639915,1763806262609,-500.0,0.00016712,2]
[394639916,1763806262620,-500.0,0.00016712,2]
[394639917,1763806262629,-500.0,0.00016712,2]
[394639918,1763806262639,-500.0,0.00016712,2]
[394639919,1763806262648,-500.0,0.00016712,2]
[394639920,1763806262657,-491.74807835,0.00016712,2]
[394639921,1763806262667,-1090.24,0.00016712,2]
[394639922,1763806262676,-776.75,0.00016712,2]
[394639923,1763806262686,-500.0,0.00016712,2]
[394639924,1763806262695,-595.92,0.00016712,2]
[394639925,1763806262705,-500.0,0.00016712,2]
[394639926,1763806262715,-500.0,0.00016712,2]
[394639927,1763806262726,-500.0,0.00016712,2]
[394639928,1763806262740,-437.09356818,0.00016712,2]
[394639929,1763806262749,-500.0,0.00016712,2]
[394639930,1763806262758,-500.0,0.00016712,2]
[394639931,1763806262769,-500.0,0.00016712,2]
[394639932,1763806262778,-500.0,0.00016712,2]
[394639933,1763806262789,-2164.02,0.00016712,2]
[394639934,1763806262798,-500.0,0.00016712,2]
[394639935,1763806262809,-500.0,0.00016712,2]
[394639936,1763806262819,-500.0,0.00016712,2]
[394639937,1763806262828,-500.0,0.00016712,2]
[394639938,1763806262837,-500.0,0.00016712,2]
[394639939,1763806262910,-655.49,0.00016712,2]
[394639940,1763806262920,-500.0,0.00016712,2]
[394639941,1763806262929,-1677.03,0.00016712,2]
[394639942,1763806262938,-7021.18,0.00016712,2]
[394639943,1763806262947,-500.0,0.00016712,2]
[394639944,1763806262955,-696.44,0.00016712,2]
[394639945,1763806262964,-786.49,0.00016712,2]
[394639946,1763806262974,-500.0,0.00016712,2]
[394639947,1763806262983,-500.0,0.00016712,2]
[394639948,1763806262992,-500.0,0.00016712,2]
[394639949,1763806263002,-1780.25,0.00016712,2]
[394639950,1763806263011,-702.43,0.00016712,2]
[394639951,1763806263020,-557.18,0.00016712,2]
[394639952,1763806263030,-987.68,0.00016712,2]
[394639953,1763806263039,-1070.85,0.00016712,2]
[394639954,1763806263048,-672.12,0.00016712,2]
[394639955,1763806263057,-500.0,0.00016712,2]
[394639956,1763806263067,-628.98,0.00016712,2]
[394639957,1763806263076,-586.32,0.00016712,2]
[394639958,1763806263086,-500.0,0.00016712,2]
[394639959,1763806263095,-500.0,0.00016712,2]
[394639960,1763806263103,-500.0,0.00016712,2]
[394639961,1763806263113,-500.0,0.00016712,2]
[394639962,1763806263122,-1078.17,0.00016712,2]
[394639963,1763806263131,-500.0,0.00016712,2]
[394639964,1763806263141,-500.0,0.00016712,2]
[394639965,1763806263151,-500.0,0.00016712,2]
[394639966,1763806263160,-500.0,0.00016712,2]
[394639967,1763806263170,-500.0,0.00016712,2]
[394639968,1763806263180,-557.34,0.00016712,2]
[394639969,1763806263190,-500.0,0.00016712,2]
[394639970,1763806263200,-500.0,0.00016712,2]
[394639971,1763806263210,-500.0,0.00016712,2]
[394639972,1763806263220,-500.0,0.00016712,2]
[394639973,1763806263228,-631.15,0.00016712,2]
[394639974,1763806263238,-1073.87,0.00016712,2]
[394639975,1763806263247,-503.62,0.00016712,2]
[394639976,1763806263256,-500.0,0.00016712,2]
[394639977,1763806263265,-500.0,0.00016712,2]
[394639978,1763806263274,-881.11,0.00016712,2]
[394639979,1763806263283,-500.0,0.00016712,2]
[394639980,1763806263293,-500.0,0.00016712,2]
[394639981,1763806263302,-5846.52,0.00016712,2]
[394639982,1763806263311,-729.49,0.00016712,2]
[394639983,1763806263320,-159.67434454,0.00016712,2]
[394639984,1763806263329,-500.0,0.00016712,2]
[394639985,1763806263339,-500.0,0.00016712,2]
[394639986,1763806263348,-4450.71,0.00016712,2]
[394639987,1763806263357,-3727.77,0.00016712,2]
[394639988,1763806263367,-500.0,0.00016712,2]
[394639989,1763806263376,-500.0,0.00016712,2]
[394639990,1763806263386,-673.15,0.00016712,2]
[394639991,1763806263395,-500.0,0.00016712,2]
[394639992,1763806263403,-867.82,0.00016712,2]
[394639993,1763806263412,-674.27,0.00016712,2]
[394639994,1763806263421,-500.0,0.00016712,2]
[394639995,1763806263430,-500.0,0.00016712,2]
[394639996,1763806263439,-500.0,0.00016712,2]
[394639997,1763806263448,-500.0,0.00016712,2]
[394639998,1763806263457,-500.0,0.00016712,2]
[394639999,1763806263466,-978.13,0.00016712,2]
[394640000,1763806263475,-1064.84,0.00016712,2]
[394640001,1763806263484,-500.0,0.00016712,2]
[394640002,1763806263493,-1344.66,0.00016712,2]
[394640003,1763806263502,-500.0,0.00016712,2]
[394640004,1763806263511,-651.06,0.00016712,2]
[394640005,1763806263520,-500.0,0.00016712,2]
[394640006,1763806263529,-500.0,0.00016712,2]
[394640007,1763806263538,-835.55,0.00016712,2]
[394640008,1763806263546,-500.0,0.00016712,2]
[394640009,1763806263555,-500.0,0.00016712,2]
[394640010,1763806263564,-500.0,0.00016712,2]
[394640011,1763806263574,-776.5,0.00016712,2]
[394640012,1763806263583,-500.0,0.00016712,2]
[394640013,1763806263592,-567.01,0.00016712,2]
[394640014,1763806263601,-662.91,0.00016712,2]
[394640015,1763806263611,-500.0,0.00016712,2]
[394640016,1763806263621,-765.48,0.00016712,2]
[394640017,1763806263630,-500.0,0.00016712,2]
[394640018,1763806263640,-162.7,0.00016712,2]
[394640019,1763806263649,-508.45766171,0.00016712,2]
[394640020,1763806263659,-577.58,0.00016712,2]
[394640021,1763806263668,-819.38,0.00016712,2]
[394640022,1763806263677,-500.0,0.00016712,2]
[394640023,1763806263687,-500.0,0.00016712,2]
[394640024,1763806263696,-500.0,0.00016712,2]
[394640025,1763806263706,-994.62,0.00016712,2]
[394640026,1763806263716,-584.85,0.00016712,2]
[394640027,1763806263730,-2977.14,0.00016712,2]
[394640028,1763806263739,-500.0,0.00016712,2]
[394640029,1763806263749,-500.0,0.00016712,2]
[394640030,1763806263758,-500.0,0.00016712,2]
[394640031,1763806263770,-500.0,0.00016712,2]
[394640032,1763806263780,-785.63,0.00016712,2]
[394640033,1763806263789,-500.0,0.00016712,2]
[394640034,1763806263799,-924.21,0.00016712,2]
[394640035,1763806263808,-600.0,0.00016712,2]
[394640036,1763806263817,-600.0,0.00016712,2]